Cogmind - Beta 14 @@@ ROGUE MODE // 2024.08.27 @ 05:26:37 Player: Hiredgoonthug Result: Escaped! Performance ------------- Evolutions (9) 4500 Regions Visited (17) 3400 Robots Destroyed (119) 595 Value Destroyed (2719) 2719 Prototype IDs (49) 980 Alien Tech Used (0) 0 Bonus (3669) 3669 TOTAL SCORE: 15863 Bonus ------- High Alert Combat Kills 69 Aligned with FarCom 300 Met Data Miner 300 Win 3000 Cogmind --------- Core Integrity 1240/1600 Matter 235/300 Energy 52/100 System Corruption 2% Temperature Cool (0) Movement Core (50) Location To Epsilon Eridani Parts ------- > --- POWER (2) -------- (None) > --- PROPULSION (7) --- Improved Gyrokinetic Inverter > --- UTILITY (14) ----- Machine Analyzer Enhanced Optical Array Advanced Transmission Jammer Graphene Brace System Shield Advanced System Shield > --- WEAPON (2) ------- (None) > --- INVENTORY (5) ---- Advanced Dynamic Insulation System Peak State ------------ > --- POWER ------------ Light Quantum Reactor Light Quantum Reactor > --- PROPULSION ------- Cooled VTOL Module Cooled Cesium-ion Thruster Cooled Cesium-ion Thruster Biomechanical Wings Nuclear Pulse Array Q-thruster > --- UTILITY ---------- Experimental Power Amplifier Machine Analyzer Enhanced Optical Array Advanced Transmission Jammer Cloaking Device Hacking Suite Advanced Hacking Suite System Shield System Shield Advanced System Shield Advanced Dynamic Insulation System System Restoration Module > --- WEAPON ----------- Vibroblade > --- INVENTORY -------- Particle Reactor Structural Scanner Graphene Brace Experimental Shield Generator Missile Launcher [Rating: 133] Favorites ----------- Power Improved Ion Engine Engine Improved Ion Engine Power Core Micro Nuclear Core Reactor Light Quantum Reactor Propulsion Light Treads Treads Light Treads Leg Improved Titanium Leg Wheel Armored Wheel Hover Unit Improved Gyrokinetic Inverter Flight Unit Cooled Cesium-ion Thruster Utility Medium Armor Plating Device Structural Scanner Storage High-capacity Storage Unit Processor Improved Targeting Computer Hackware System Shield Protection Medium Armor Plating Weapon Minigun Energy Gun Medium Laser Ballistic Gun Minigun Ballistic Cannon Advanced Assault Cannon Launcher Missile Launcher Slashing Weapon Katana Build | -11 -10 -10 -9 -9 -9 -8 -8 -7 -7 -7 -6 -6 -5 -4 -3 -2 -1 ------- Run | Yrd Mat Min Mat Min Exi Min Mat Fac Low Dat Pro Fac Fac Fac Res Res Acc Slots Evolved 18 | . . . 2 . . . 2 2 . . . 2 2 2 2 2 2 Power 1 | . . . . . . . . . . . . . . 1 . . . Propulsion 5 | . . . 1 . . . . 1 . . . 1 . 1 . 1 . Utility 12 | . . . 1 . . . 2 1 . . . 1 2 . 2 1 2 Weapon . | . . . . . . . . . . . . . . . . . . Parts Attached 157 | 6 4 . 28 1 1 . 36 9 . 1 3 7 17 18 10 10 6 Power 21 | 1 1 . 2 1 . . 4 2 . . . 1 . 4 1 3 1 Engine 7 | 1 1 . 2 1 . . 2 . . . . . . . . . . Core 9 | . . . . . . . 2 2 . . . 1 . 4 . . . Reactor 5 | . . . . . . . . . . . . . . . 1 3 1 Propulsion 39 | 2 . . 11 . . . 9 2 . . 1 2 6 2 1 1 2 Treads 12 | 2 . . 10 . . . . . . . . . . . . . . Leg 5 | . . . . . . . 5 . . . . . . . . . . Wheel 1 | . . . 1 . . . . . . . . . . . . . . Hover 2 | . . . . . . . . . . . . . . . . . 2 Flight 19 | . . . . . . . 4 2 . . 1 2 6 2 1 1 . Utility 66 | 1 2 . 5 . 1 . 13 5 . . . 4 11 9 8 5 2 Device 33 | . . . . . . . 1 2 . . . 2 8 7 7 4 2 Storage 3 | 1 1 . . . 1 . . . . . . . . . . . . Processor 7 | . 1 . 1 . . . 3 . . . . 1 . . . 1 . Hackware 6 | . . . . . . . 2 1 . . . . 1 1 1 . . Protection 17 | . . . 4 . . . 7 2 . . . 1 2 1 . . . Artifact . | . . . . . . . . . . . . . . . . . . Weapon 31 | 2 1 . 10 . . . 10 . . 1 2 . . 3 . 1 1 Energy Gun 2 | . . . 1 . . . 1 . . . . . . . . . . Energy Cannon . | . . . . . . . . . . . . . . . . . . Ballistic Gun 14 | 2 1 . 5 . . . 5 . . 1 . . . . . . . Ballistic Cannon 6 | . . . 4 . . . 2 . . . . . . . . . . Launcher 4 | . . . . . . . 1 . . . 1 . . . . 1 1 Special Weapon . | . . . . . . . . . . . . . . . . . . Impact Weapon . | . . . . . . . . . . . . . . . . . . Slashing Weapon 5 | . . . . . . . 1 . . . 1 . . 3 . . . Piercing Weapon . | . . . . . . . . . . . . . . . . . . Special Melee Weapon . | . . . . . . . . . . . . . . . . . . Unidentified Prototypes 12 | . . . 1 . . . 4 1 . . . . 1 2 2 1 . Parts Lost 41 | . 1 . 10 . . . 3 . . . 1 1 1 3 3 13 5 Power 6 | . 1 . 1 . . . . . . . . . . . 1 2 1 Propulsion 16 | . . . 5 . . . . . . . 1 1 . 2 . 6 1 Utility 15 | . . . 2 . . . 3 . . . . . 1 1 2 4 2 Weapon 4 | . . . 2 . . . . . . . . . . . . 1 1 Highest Loss Streak 13 | . 1 . 8 . . . 1 . . . 1 1 1 2 2 13 5 To Critical Strikes . | . . . . . . . . . . . . . . . . . . Average Slot Usage (%) 93 | . 90 100 94 100 100 100 92 99 100 95 100 94 98 96 85 87 31 Engine 6 | . 14 14 9 11 11 11 8 . . . . . . . . . . Core 1 | . . . . . . . . 7 7 7 7 6 5 8 2 . . Treads 11 | . 28 28 30 33 33 33 . . . . . . . . . . . Leg 7 | . . . . . . . 25 . . . . . . . . . . Flight 8 | . . . . . . . . 30 30 30 30 28 28 30 23 24 . Device 4 | . . . . . . . 2 6 7 7 7 6 12 10 17 20 8 Storage 6 | . 14 14 11 11 11 11 9 . . . . . . . . . . Processor 10 | . 4 14 11 11 11 11 11 12 7 7 7 13 11 10 6 7 8 Hackware 6 | . . . . . . . . 17 23 23 23 20 20 18 21 20 11 Protection 8 | . . . 8 11 11 11 15 6 7 7 7 5 5 4 3 . . Ballistic Gun 12 | . 28 28 10 22 22 22 11 7 7 2 7 6 5 5 3 . . Ballistic Cannon 3 | . . . 10 . . . 6 . . . . . . . . . . Slashing Weapon 1 | . . . . . . . . 7 7 7 6 6 5 4 4 4 . Peak Build Rating 133 | 6 9 9 15 16 17 17 38 47 47 47 47 59 69 94 106 133 71 Average Rating 37 | 4 7 9 12 15 16 17 35 44 47 44 46 52 67 86 89 121 46 On Entrance 36 | . 6 9 9 15 16 17 17 37 47 47 47 47 59 68 78 106 33 Naked Turns . | . . . . . . . . . . . . . . . . . . Heaviest Build 76 | 11 27 27 38 40 60 60 76 19 15 15 19 17 20 33 31 43 30 Greatest Support 60 | 40 40 40 60 60 60 60 60 23 22 22 22 28 30 35 44 52 24 Greatest Overweight (x) 3 | . . . 2 . . . 3 . . . . . 1 . 1 3 1 Average Overweight (x) . | . . . . . . . 1 . . . . . . . . . . Largest Inventory Capacity 20 | 8 15 15 15 15 20 20 20 20 5 5 5 5 5 5 5 5 5 Average Capacity 13 | 6 14 15 15 15 16 20 20 5 5 5 5 5 5 5 5 5 5 Most Carried 20 | 2 9 8 15 15 16 17 20 7 5 5 5 5 5 5 5 5 4 Average Carried 11 | 1 6 8 11 14 15 16 19 4 5 5 4 4 4 4 4 4 3 Final Capacity 20 | 8 15 15 15 15 20 20 20 5 5 5 5 5 5 5 5 5 5 Final Carried 17 | 2 8 8 15 15 16 17 8 5 5 5 4 5 4 4 5 5 1 Class Distribution -------------------- 66% | Mutant 17% | Hacker-Ninja 14% | Hacker-Scout Dominant Class ---------------- Mutant | -10/Materials Mutant | -10/Mines Mutant | -9/Materials Mutant | -9/Mines Mutant | -9/Exiles Mutant | -8/Mines Mutant | -8/Materials Hacker-Scout | -7/Factory Hacker-Sprinter | -7/Lower Caves Hacker-Sprinter | -7/Data Miner Hacker-Sprinter | -6/Proximity Caves Hacker-Scout | -6/Factory Hacker-Ninja | -5/Factory Hacker-Ninja | -4/Factory Hacker-Ninja | -3/Research Hacker-Ninja | -2/Research Hacker-Scout | -1/Access Resources | -11 -10 -10 -9 -9 -9 -8 -8 -7 -7 -7 -6 -6 -5 -4 -3 -2 -1 ----------- Run | Yrd Mat Min Mat Min Exi Min Mat Fac Low Dat Pro Fac Fac Fac Res Res Acc Matter Collected 3729 | 196 463 . 925 244 . 82 1015 13 108 . 89 78 114 165 21 216 . Remotely . | . . . . . . . . . . . . . . . . . . Salvage Created 4309 | . 394 . 1270 572 . 163 1304 24 . . 47 30 . 136 172 197 . Parts 260 | . 30 . 66 42 . 15 71 4 . . 8 1 . 5 7 11 . Haulers Intercepted 8 | . 1 . 3 . . . 4 . . . . . . . . . . Recyclers Shooed 3 | . . . 1 1 . 1 . . . . . . . . . . . Parts Field Recycled . | . . . . . . . . . . . . . . . . . . Retrieved Matter . | . . . . . . . . . . . . . . . . . . Parts Self-Destructed 10 | . . . . . . . . . 2 . 8 . . . . . . Prevented . | . . . . . . . . . . . . . . . . . . Kills | -11 -10 -10 -9 -9 -9 -8 -8 -7 -7 -7 -6 -6 -5 -4 -3 -2 -1 ------- Run | Yrd Mat Min Mat Min Exi Min Mat Fac Low Dat Pro Fac Fac Fac Res Res Acc Combat Hostiles Destroyed 65 | . 11 . 22 8 . . 23 . . . 1 . . . . . . Melee 1 | . . . . . . . . . . . 1 . . . . . . Guns 42 | . 11 . 8 8 . . 15 . . . . . . . . . . Cannons 22 | . . . 14 . . . 8 . . . . . . . . . . Classes Destroyed 14 | . 5 . 5 1 . . 2 . . . 1 . . . . . . Worker 10 | . . . 1 4 . 3 1 . . . . . . . . 1 . Builder 3 | . . . . 1 . . . 2 . . . . . . . . . Tunneler 8 | . . . 2 3 . 2 . . . . . . . 1 . . . Hauler 8 | . 1 . 3 . . . 4 . . . . . . . . . . Recycler 12 | . . . 4 2 . 1 2 . . . . . . 1 1 1 . Operator 3 | . 1 . . . . . 1 . . . . . . . 1 . . Watcher 10 | . 2 . 3 . . . 3 . . . . 1 . . . 1 . Swarmer 17 | . 6 . 2 3 . . 6 . . . . . . . . . . Grunt 30 | . 5 . 12 4 . . 9 . . . . . . . . . . Brawler 1 | . . . . . . . 1 . . . . . . . . . . Duelist 3 | . . . 1 1 . . 1 . . . . . . . . . . Sentry 12 | . . . 7 . . . 5 . . . . . . . . . . Hunter 1 | . . . . . . . 1 . . . . . . . . . . Programmer 1 | . . . . . . . . . . . 1 . . . . . . Best Kill Streak 5 | . 3 . 5 4 . 3 5 2 . . 1 1 . 1 1 1 . Combat Bots Only 5 | . 3 . 3 3 . . 5 . . . 1 . . . . . . Max Kills in Single Turn 2 | . 1 . 1 1 . 1 2 1 . . 1 1 . 1 1 1 . Gunslinging . | . . . . . . . . . . . . . . . . . . Exploded . | . . . . . . . . . . . . . . . . . . Melee 1 | . . . . . . . . . . . 1 . . . . . . Uniques/NPCs Destroyed . | . . . . . . . . . . . . . . . . . . Combat | -11 -10 -10 -9 -9 -9 -8 -8 -7 -7 -7 -6 -6 -5 -4 -3 -2 -1 -------- Run | Yrd Mat Min Mat Min Exi Min Mat Fac Low Dat Pro Fac Fac Fac Res Res Acc Hostile Shots Fired 580 | . 48 . 167 22 . . 124 . 11 . 20 32 25 8 2 49 72 Missed 218 | . 12 . 49 5 . . 37 . 7 . 14 21 14 5 . 24 30 Damage Taken 5988 | . 352 . 1547 172 . . 1323 . 43 . 100 109 198 269 140 960 775 Core 1118 | . 54 . 172 12 . . 94 . 13 . 14 22 56 . . 321 360 Absorbed by Shields 154 | . . . . . . . . . . . . . 5 . . . 149 Regen/Repaired (Parts) 669 | . . . . . . . 403 . . . . 117 28 121 . . . Core Remaining (%) 86 | 100 . 78 . . . 54 82 . . . 96 97 94 100 100 77 77 Volleys Fired 284 | . 43 1 99 36 . 12 83 5 . . 1 . . . . 3 1 Largest 2 | . 2 2 2 2 . 2 2 1 . . 1 . . . . 1 1 Hottest 96 | . 40 40 78 46 . 46 96 25 . . 36 . . . . 36 36 Shots Fired 557 | . 86 2 198 72 . 24 164 6 . . 1 . . . . 3 1 Gun 409 | . 86 2 95 72 . 24 124 6 . . . . . . . . . Cannon 143 | . . . 103 . . . 40 . . . . . . . . . . Launcher 5 | . . . . . . . . . . . 1 . . . . 3 1 Special . | . . . . . . . . . . . . . . . . . . Kinetic 539 | . 86 2 185 72 . 24 164 6 . . . . . . . . . Thermal 13 | . . . 13 . . . . . . . . . . . . . . Explosive 5 | . . . . . . . . . . . 1 . . . . 3 1 Electromagnetic . | . . . . . . . . . . . . . . . . . . Robot Hit Streak 22 | . 7 6 22 11 . 9 17 2 . . . . . . . . . Robot Miss Streak 6 | . 6 1 3 5 . 1 4 2 . . . . . . . . . Penetration Max . | . . . . . . . . . . . . . . . . . . Secondary Targets 5 | . 1 . 1 1 . . 2 . . . . . . . . . . Max Gunslinging Chain 1 | . 1 . 1 1 . . 1 . . . . . . . . . . Shots Hit Robots 383 | . 48 1 142 45 . 16 114 4 . . 2 3 . 3 2 3 . Core Hits 156 | . 22 . 48 23 . 6 51 1 . . 1 1 . . 1 2 . Critical Kills . | . . . . . . . . . . . . . . . . . . Critical Parts Destroyed 1 | . . . . . . . 1 . . . . . . . . . . Critical Strikes 3 | . . . 1 . . . 2 . . . . . . . . . . Destroy 1 | . . . . . . . 1 . . . . . . . . . . Blast 2 | . . . 1 . . . 1 . . . . . . . . . . Melee Attacks 119 | . . . . . . . . 4 . . 3 23 31 24 12 22 . Impact . | . . . . . . . . . . . . . . . . . . Slashing 119 | . . . . . . . . 4 . . 3 23 31 24 12 22 . Piercing . | . . . . . . . . . . . . . . . . . . Sneak Attacks 8 | . . . . . . . . 2 . . . 1 . 2 1 2 . Combat Hostiles . | . . . . . . . . . . . . . . . . . . Follow-up Attacks . | . . . . . . . . . . . . . . . . . . Damage Inflicted 7324 | . 584 15 2500 692 . 234 2185 180 . . 67 133 . 259 190 285 . Guns 4058 | . 584 15 1042 692 . 234 1457 34 . . . . . . . . . Cannons 2186 | . . . 1458 . . . 728 . . . . . . . . . . Explosions . | . . . . . . . . . . . . . . . . . . Melee 1080 | . . . . . . . . 146 . . 67 133 . 259 190 285 . Ramming . | . . . . . . . . . . . . . . . . . . Kinetic 6094 | . 584 15 2350 692 . 234 2185 34 . . . . . . . . . Thermal 150 | . . . 150 . . . . . . . . . . . . . . Explosive . | . . . . . . . . . . . . . . . . . . Electromagnetic . | . . . . . . . . . . . . . . . . . . Impact . | . . . . . . . . . . . . . . . . . . Slashing 1080 | . . . . . . . . 146 . . 67 133 . 259 190 285 . Piercing . | . . . . . . . . . . . . . . . . . . Highest Corruption 3 | . . . . . . . . 1 1 1 2 . . . 2 3 2 Average Corruption 1 | . . . . . . . . 1 1 1 1 . . . 2 2 1 Corruption Purged 3 | . . . . . . . . . . . . . . . . 3 . Corruption Blocked . | . . . . . . . . . . . . . . . . . . Effects 11 | . . . . . . . . 4 1 1 . . . . 1 4 . Message Errors 3 | . . . . . . . . 1 1 1 . . . . . . . Matter Fused 2 | . . . . . . . . . . . . . . . . 2 . Energy Discharges 1 | . . . . . . . . . . . . . . . . 1 . Data Loss (minor) 2 | . . . . . . . . 1 . . . . . . 1 . . Data Loss (major) 1 | . . . . . . . . . . . . . . . . 1 . Misfires 1 | . . . . . . . . 1 . . . . . . . . . Alerts 1 | . . . . . . . . 1 . . . . . . . . . Overload Shots . | . . . . . . . . . . . . . . . . . . Overflow Damage 491 | . . . 14 . . . 27 66 . . 16 . . 183 88 97 . Projectiles 41 | . . . 14 . . . 27 . . . . . . . . . . Explosions 16 | . . . . . . . . . . . 16 . . . . . . Melee 434 | . . . . . . . . 66 . . . . . 183 88 97 . Knockbacks 11 | . . . 6 . . . 5 . . . . . . . . . . Impact . | . . . . . . . . . . . . . . . . . . Kinetic 10 | . . . 6 . . . 4 . . . . . . . . . . Secondary 1 | . . . . . . . 1 . . . . . . . . . . Self-Inflicted Damage 17 | . . . . . . . . . . . 17 . . . . . . Shots 1 | . . . . . . . . . . . 1 . . . . . . Rammed . | . . . . . . . . . . . . . . . . . . Targets Rammed . | . . . . . . . . . . . . . . . . . . Kicked . | . . . . . . . . . . . . . . . . . . Crushed . | . . . . . . . . . . . . . . . . . . Highest Temperature 393 | . . . 390 5 . . 393 24 8 . . . . 193 . 135 . Average Temperature 82 | . . . 92 1 . . 84 7 8 . . . . 70 . 80 . Received Heat Transfer 1629 | . 120 . 732 63 . . 594 . 12 . 6 6 60 9 9 9 9 Effects 6 | . . . 3 . . . 3 . . . . . . . . . . Interference 2 | . . . . . . . 2 . . . . . . . . . . Matter Decay 2 | . . . 1 . . . 1 . . . . . . . . . . Short Circuit 1 | . . . 1 . . . . . . . . . . . . . . Damage (minor) 1 | . . . 1 . . . . . . . . . . . . . . Siege Activations . | . . . . . . . . . . . . . . . . . . Robots Corrupted . | . . . . . . . . . . . . . . . . . . Combat Hostiles . | . . . . . . . . . . . . . . . . . . Parts Fried . | . . . . . . . . . . . . . . . . . . Impact Corruptions 1 | . . . . . . . 1 . . . . . . . . . . Robots Melted . | . . . . . . . . . . . . . . . . . . Combat Hostiles . | . . . . . . . . . . . . . . . . . . Parts Melted . | . . . . . . . . . . . . . . . . . . Heat Transferred 444 | . . . 444 . . . . . . . . . . . . . . Parts Sabotaged . | . . . . . . . . . . . . . . . . . . Parts Stolen . | . . . . . . . . . . . . . . . . . . Parts Stripped . | . . . . . . . . . . . . . . . . . . Power Chain Reactions . | . . . . . . . . . . . . . . . . . . Alert | -11 -10 -10 -9 -9 -9 -8 -8 -7 -7 -7 -6 -6 -5 -4 -3 -2 -1 ------- Run | Yrd Mat Min Mat Min Exi Min Mat Fac Low Dat Pro Fac Fac Fac Res Res Acc Peak Influence 558 | . 205 23 332 239 . 30 558 272 . . . 125 220 132 43 277 68 Initial 253 | . . 23 8 129 . . . 253 . . . 91 7 39 6 32 8 Average 128 | . 92 23 95 149 . 19 228 163 . . . 51 63 53 21 115 13 Maximum Alert Level 2 | . 1 . 1 1 . . 2 1 . . . . 1 . . 1 . Low Security (%) 80 | 100 98 100 90 91 . 100 52 59 . . . 100 94 100 100 93 100 Level 1 13 | . 1 . 9 8 . . 26 40 . . . . 5 . . 6 . Level 2 6 | . . . . . . . 20 . . . . . . . . . . Level 3 . | . . . . . . . . . . . . . . . . . . Level 4 . | . . . . . . . . . . . . . . . . . . Level 5 . | . . . . . . . . . . . . . . . . . . High Security . | . . . . . . . . . . . . . . . . . . Max Security . | . . . . . . . . . . . . . . . . . . Squads Dispatched 16 | . 2 . 2 . . . . . . . 1 1 3 2 1 2 2 Investigation 8 | . 1 . 1 . . . . . . . . 1 1 1 1 1 1 Extermination 2 | . . . . . . . . . . . . . 1 . . . 1 Reinforcement 5 | . 1 . 1 . . . . . . . . . 1 1 . 1 . Assault 1 | . . . . . . . . . . . 1 . . . . . . Garrison . | . . . . . . . . . . . . . . . . . . Intercept . | . . . . . . . . . . . . . . . . . . Searches Triggered . | . . . . . . . . . . . . . . . . . . Construction Impeded . | . . . . . . . . . . . . . . . . . . Haulers Reinforced . | . . . . . . . . . . . . . . . . . . Active Scanning Responses . | . . . . . . . . . . . . . . . . . . Cargo Convoy Interrupts . | . . . . . . . . . . . . . . . . . . Stealth | -11 -10 -10 -9 -9 -9 -8 -8 -7 -7 -7 -6 -6 -5 -4 -3 -2 -1 --------- Run | Yrd Mat Min Mat Min Exi Min Mat Fac Low Dat Pro Fac Fac Fac Res Res Acc Distress Signals 13 | . 1 . 4 . . . 2 . . . . . 3 3 . . . Communications Jammed 9 | . . . . . . . . . . . . . 1 . . . 8 Distress Signals 9 | . . . . . . . . . . . . . 1 . . . 8 Times Spotted 201 | . 23 . 31 8 . . 37 2 3 . 19 9 29 10 4 16 10 Peak Tracking Total 16 | . 4 . 6 3 . . 6 1 4 . 16 5 8 8 3 10 10 Tactical Retreats 24 | . . . 1 . . . 1 . 1 . 3 2 10 4 . 2 . Traps | -11 -10 -10 -9 -9 -9 -8 -8 -7 -7 -7 -6 -6 -5 -4 -3 -2 -1 ------- Run | Yrd Mat Min Mat Min Exi Min Mat Fac Low Dat Pro Fac Fac Fac Res Res Acc Traps Triggered 12 | . 1 . 1 . . . 1 1 . . . . 3 1 1 2 1 Indirectly . | . . . . . . . . . . . . . . . . . . Trap Hack Attempts . | . . . . . . . . . . . . . . . . . . Triggered . | . . . . . . . . . . . . . . . . . . Disarmed . | . . . . . . . . . . . . . . . . . . Reprogrammed . | . . . . . . . . . . . . . . . . . . Reused . | . . . . . . . . . . . . . . . . . . Traps Extracted . | . . . . . . . . . . . . . . . . . . Installed . | . . . . . . . . . . . . . . . . . . Triggered 1 | . . . . . . . . . 1 . . . . . . . . Machines | -11 -10 -10 -9 -9 -9 -8 -8 -7 -7 -7 -6 -6 -5 -4 -3 -2 -1 ---------- Run | Yrd Mat Min Mat Min Exi Min Mat Fac Low Dat Pro Fac Fac Fac Res Res Acc Machines Disabled 9 | . 1 . 4 . . . 1 1 . . . . 1 . 1 . . Max in Single Turn 1 | . 1 . 1 . . . 1 1 . . . . 1 . 1 . . Garrison Access 5 | . . . . . . . . 1 . . . 1 1 2 . . . Energy Cycler 1 | . . . . . . . . . . . . . . . . . 1 Machines Repaired . | . . . . . . . . . . . . . . . . . . Machines Dismantled . | . . . . . . . . . . . . . . . . . . Machines Sabotaged . | . . . . . . . . . . . . . . . . . . Overloaded Fab Kills . | . . . . . . . . . . . . . . . . . . Hacking | -11 -10 -10 -9 -9 -9 -8 -8 -7 -7 -7 -6 -6 -5 -4 -3 -2 -1 --------- Run | Yrd Mat Min Mat Min Exi Min Mat Fac Low Dat Pro Fac Fac Fac Res Res Acc Machines Accessed 70 | . 3 . 4 . 1 . 8 6 . 4 . 10 12 14 5 3 . Terminals 42 | . 3 . 4 . . . 5 5 . . . 4 6 9 3 3 . Fabricators 5 | . . . . . . . . . . . . 1 1 1 2 . . Repair Stations 7 | . . . . . . . 2 . . . . 3 1 1 . . . Recycling Units 4 | . . . . . . . 1 . . . . . 2 1 . . . Scanalyzers 2 | . . . . . . . . . . . . 1 1 . . . . Garrison Access 5 | . . . . . . . . 1 . . . 1 1 2 . . . Total Hacks 275 | . 8 . 17 . 1 . 26 25 . 32 . 36 34 72 18 6 . Successful 156 | . . . 8 . 1 . 17 14 . 32 . 23 18 34 6 3 . Failed 119 | . 8 . 9 . . . 9 11 . . . 13 16 38 12 3 . Catastrophic 20 | . 3 . 1 . . . 2 1 . . . . 3 4 5 1 . Database Lockouts . | . . . . . . . . . . . . . . . . . . Manual 125 | . 8 . 10 . 1 . 10 14 . . . 14 17 38 9 4 . Terminals 182 | . 8 . 17 . . . 11 24 . . . 21 23 61 11 6 . Fabricators 20 | . . . . . . . . . . . . 5 3 5 7 . . Repair Stations 26 | . . . . . . . 13 . . . . 8 2 3 . . . Recycling Units 6 | . . . . . . . 2 . . . . . 3 1 . . . Scanalyzers 3 | . . . . . . . . . . . . 1 2 . . . . Garrison Access 5 | . . . . . . . . 1 . . . 1 1 2 . . . Terminal Hacks 91 | . . . 5 . 1 . 3 8 . 32 . 10 6 21 3 2 . Record 25 | . . . . . . . . 2 . 11 . 3 . 7 2 . . Part Schematic 16 | . . . . . . . . 2 . 12 . . . 2 . . . Robot Schematic 6 | . . . . . . . . . . 6 . . . . . . . Robot Analysis 2 | . . . 1 . . . . 1 . . . . . . . . . Prototype ID Bank 5 | . . . . . . . . . . 3 . 1 . 1 . . . Level Access Points 7 | . . . . . . . 1 1 . . . 1 1 1 1 1 . Terminal Index 2 | . . . . . . . . . . . . 1 . 1 . . . Fabricator Index 3 | . . . . . . . . . . . . 1 . 2 . . . Repair Station Index 1 | . . . . . . . . . . . . 1 . . . . . Recycling Unit Index 1 | . . . . . . . . . . . . . 1 . . . . Alert Level 3 | . . . 2 . . . 1 . . . . . . . . . . Unreport Threat 4 | . . . 1 . . . . 1 . . . . 1 1 . . . Locate Traps 3 | . . . . . . . . . . . . . 1 2 . . . Recall Investigation 1 | . . . . . . . . . . . . . . 1 . . . Recall Extermination 2 | . . . . . . . . . . . . . 2 . . . . Hauler Manifests 4 | . . . . . . . 1 1 . . . 1 . 1 . . . Zone Layout 5 | . . . 1 . . . . . . . . 1 . 2 . 1 . Derelict Proto ID Bank 1 | . . . . . 1 . . . . . . . . . . . . Fabricator Hacks 9 | . . . . . . . . . . . . 3 2 2 2 . . Network Status 1 | . . . . . . . . . . . . 1 . . . . . Load Schematic 4 | . . . . . . . . . . . . 1 1 1 1 . . Build 4 | . . . . . . . . . . . . 1 1 1 1 . . Repair Station Hacks 18 | . . . . . . . 10 . . . . 4 2 2 . . . Scan Component 11 | . . . . . . . 6 . . . . 3 1 1 . . . Repair 7 | . . . . . . . 4 . . . . 1 1 1 . . . Recycling Unit Hacks 4 | . . . . . . . 1 . . . . . 2 1 . . . Report Inventory 3 | . . . . . . . . . . . . . 2 1 . . . Retrieve Components 1 | . . . . . . . 1 . . . . . . . . . . Scanalyzer 3 | . . . . . . . . . . . . 1 2 . . . . Insert Component 2 | . . . . . . . . . . . . 1 1 . . . . Analyze 1 | . . . . . . . . . . . . . 1 . . . . Garrison Access Hacks 5 | . . . . . . . . 1 . . . 1 1 2 . . . Seal Access 5 | . . . . . . . . 1 . . . 1 1 2 . . . Unauthorized Hacks 26 | . . . 3 . . . 3 5 . . . 4 3 6 1 1 . Terminals 26 | . . . 3 . . . 3 5 . . . 4 3 6 1 1 . Assimilate 6 | . . . . . . . . 2 . . . 1 . 3 . . . Botnet 20 | . . . 3 . . . 3 3 . . . 3 3 3 1 1 . Fabricators . | . . . . . . . . . . . . . . . . . . Repair Stations . | . . . . . . . . . . . . . . . . . . Recycling Units . | . . . . . . . . . . . . . . . . . . Scanalyzers . | . . . . . . . . . . . . . . . . . . Garrison Access . | . . . . . . . . . . . . . . . . . . Data Cores Recovered 1 | . . . . . . . 1 . . . . . . . . . . Used . | . . . . . . . . . . . . . . . . . . Hacking Detections 51 | . 3 . 4 . . . 8 4 . . . 8 9 9 5 1 . Full Trace Events 6 | . 1 . 1 . . . . . . . . 1 1 1 1 . . Feedback Events . | . . . . . . . . . . . . . . . . . . Feedback Blocked . | . . . . . . . . . . . . . . . . . . Robot Schematics Acquired 6 | . . . . . . . . . . 6 . . . . . . . Robots Built . | . . . . . . . . . . . . . . . . . . Authchips . | . . . . . . . . . . . . . . . . . . Time . | . . . . . . . . . . . . . . . . . . Total Robot Build Rating . | . . . . . . . . . . . . . . . . . . Part Schematics Acquired 17 | . . . . . . . . 2 . 12 . . 1 2 . . . Parts Built 5 | . . . . . . . . . . . . 1 1 2 1 . . Authchips . | . . . . . . . . . . . . . . . . . . Time 212 | . . . . . . . . . . . . 76 76 25 35 . . Total Part Build Rating 18 | . . . . . . . . . . . . 5 5 2 6 . . Parts Repaired 7 | . . . . . . . 4 . . . . 1 1 1 . . . Time 289 | . . . . . . . 152 . . . . 38 80 19 . . . Parts Recycled . | . . . . . . . . . . . . . . . . . . Recycled Matter . | . . . . . . . . . . . . . . . . . . Retrieved Matter . | . . . . . . . . . . . . . . . . . . Retrieved Components 9 | . . . . . . . 9 . . . . . . . . . . Parts Scanalyzed 1 | . . . . . . . . . . . . . 1 . . . . Part Schematics Acquired 1 | . . . . . . . . . . . . . 1 . . . . Parts Damaged . | . . . . . . . . . . . . . . . . . . Bothacking | -11 -10 -10 -9 -9 -9 -8 -8 -7 -7 -7 -6 -6 -5 -4 -3 -2 -1 ------------ Run | Yrd Mat Min Mat Min Exi Min Mat Fac Low Dat Pro Fac Fac Fac Res Res Acc Used RIF Installer . | . . . . . . . . . . . . . . . . . . Robots Hacked . | . . . . . . . . . . . . . . . . . . Non-combat . | . . . . . . . . . . . . . . . . . . Combat . | . . . . . . . . . . . . . . . . . . Robot Hacks Applied . | . . . . . . . . . . . . . . . . . . Relay Couplers Released . | . . . . . . . . . . . . . . . . . . Fabnet Peak Effective % . | . . . . . . . . . . . . . . . . . . Robots Rewired . | . . . . . . . . . . . . . . . . . . Allies Hacked . | . . . . . . . . . . . . . . . . . . Hacks Repelled . | . . . . . . . . . . . . . . . . . . Allies | -11 -10 -10 -9 -9 -9 -8 -8 -7 -7 -7 -6 -6 -5 -4 -3 -2 -1 -------- Run | Yrd Mat Min Mat Min Exi Min Mat Fac Low Dat Pro Fac Fac Fac Res Res Acc Total Allies 4 | . . . . . . . . 1 . . . 1 . 2 . . . Largest Group 1 | . . . . . . . . 1 1 . . 1 1 1 . . . Highest-Rated Group 26 | . . . . . . . . 26 26 . . 26 26 26 . . . Highest-Rated Ally 26 | . . . . . . . . 26 26 . . 26 26 26 . . . Total Orders . | . . . . . . . . . . . . . . . . . . Ally Attacks . | . . . . . . . . . . . . . . . . . . Total Damage . | . . . . . . . . . . . . . . . . . . Kills . | . . . . . . . . . . . . . . . . . . Allies Corrupted . | . . . . . . . . . . . . . . . . . . Allies Melted . | . . . . . . . . . . . . . . . . . . Intel | -11 -10 -10 -9 -9 -9 -8 -8 -7 -7 -7 -6 -6 -5 -4 -3 -2 -1 ------- Run | Yrd Mat Min Mat Min Exi Min Mat Fac Low Dat Pro Fac Fac Fac Res Res Acc Robot Analysis Total 2 | . . . 1 . . . . 1 . . . . . . . . . Derelict Logs Recovered 4 | . . . . 2 . . . . . . 2 . . . . . . Drone Launches . | . . . . . . . . . . . . . . . . . . Drone Recoveries . | . . . . . . . . . . . . . . . . . . Exploration | -11 -10 -10 -9 -9 -9 -8 -8 -7 -7 -7 -6 -6 -5 -4 -3 -2 -1 ------------- Run | Yrd Mat Min Mat Min Exi Min Mat Fac Low Dat Pro Fac Fac Fac Res Res Acc Turns Passed 12384 | 66 881 163 1461 746 905 446 3590 524 75 44 88 1055 858 442 244 424 372 Spaces Moved 11055 | 37 448 101 677 338 564 256 1096 1206 261 93 264 1506 1418 1006 533 914 337 Core 250 | 3 . . . . . . . . . . . . . . . 7 240 Treads 2353 | 34 448 101 572 338 564 256 40 . . . . . . . . . . Legs 1055 | . . . . . . . 1055 . . . . . . . . . . Wheels 105 | . . . 105 . . . . . . . . . . . . . . Hover 97 | . . . . . . . . . . . . . . . . . 97 Flight 7195 | . . . . . . . 1 1206 261 93 264 1506 1418 1006 533 907 . Fastest Speed 12 | 50 160 160 120 160 160 160 184 28 28 28 28 26 24 21 15 12 50 Average Speed 72 | 151 160 160 153 160 160 160 201 28 28 28 28 27 24 21 25 22 55 Slowest Speed 340 | 160 160 160 240 160 160 160 340 29 28 28 28 28 104 24 96 200 106 Overloaded Moves 23 | . . . . . . . . . . . . . . . 4 19 . Propulsion Burnouts . | . . . . . . . . . . . . . . . . . . Robots Hopped 44 | . . . . . . . . 6 . . . 8 2 27 . 1 . Cave-ins Triggered . | . . . . . . . . . . . . . . . . . . Exploration Rate (%) 45 | 4 60 32 57 63 87 72 65 38 47 73 56 36 41 37 18 25 10 Regions Visited 17 Branch Regions 7 Pre-discovered Areas 2 | . . . . 1 . . . . . 1 . . . . . . . Known Exits Taken 7 | . . . . . . . 1 . . . 1 1 1 1 1 1 . Unknown Exits Taken 10 | 1 1 1 1 1 1 1 . 1 1 1 . . . . . . . Scrap Searched 5 | . . . . 1 . 1 . . 1 . 2 . . . . . . Spaces Dug 156 | . . . . . . . . 2 . . 13 19 27 20 8 58 9 Terrain Destroyed 171 | . . . 5 . . . 10 2 . . 13 19 27 20 8 58 9 Melee 93 | . . . . . . . . 2 . . . 19 27 20 8 17 . Projectile 15 | . . . 5 . . . 10 . . . . . . . . . . AOE 63 | . . . . . . . . . . . 13 . . . . 41 9 Terrain Rammed . | . . . . . . . . . . . . . . . . . . Walls Destroyed . | . . . . . . . . . . . . . . . . . . Machines Disabled . | . . . . . . . . . . . . . . . . . . Actions | -11 -10 -10 -9 -9 -9 -8 -8 -7 -7 -7 -6 -6 -5 -4 -3 -2 -1 --------- Run | Yrd Mat Min Mat Min Exi Min Mat Fac Low Dat Pro Fac Fac Fac Res Res Acc Total 14615 | 44 528 101 896 472 568 269 2342 1379 262 110 270 2100 1876 1165 624 1089 520 Wait 2890 | . 25 . 63 95 . 1 1076 141 . 16 . 568 401 133 59 135 177 Move 10958 | 36 447 100 676 337 563 255 1095 1193 260 92 263 1490 1413 959 532 911 336 Hop 35 | . . . . . . . . 6 . . . 7 2 19 . 1 . Pick Up 79 | 2 7 . 20 1 2 1 20 9 1 . . 3 2 5 3 3 . Fast Attach 48 | 6 2 . 4 . . . 11 1 . 1 . 3 3 6 6 3 2 Attach 44 | . 1 . 10 . . . 11 2 . . 1 1 4 3 4 3 4 Detach 7 | . 1 . . . . . . . . . . . 1 . 4 1 . Swap 65 | . 1 . 14 1 1 . 14 6 . . 2 3 10 9 . 4 . Drop 79 | . 1 . 10 2 2 . 32 12 1 1 . 2 2 7 4 3 . Fire 284 | . 43 1 99 36 . 12 83 5 . . 1 . . . . 3 1 Melee 119 | . . . . . . . . 4 . . 3 23 31 24 12 22 . Ram . | . . . . . . . . . . . . . . . . . . Kick . | . . . . . . . . . . . . . . . . . . Crush . | . . . . . . . . . . . . . . . . . . Escape Stasis 7 | . . . . . . . . . . . . . 7 . . . . Rewire . | . . . . . . . . . . . . . . . . . . Trap . | . . . . . . . . . . . . . . . . . . Miscellaneous . | . . . . . . . . . . . . . . . . . . Route ------- -11/Scrapyard -10/Materials (discovered 3 exits: *Mat x2 / [*Min]) -10/Mines -9/Materials (discovered 2 exits: *Mat / [*Min]) -9/Mines (discovered 3 exits: *Mat x2 / *Exi) -9/Exiles -8/Mines -8/Materials (discovered 3 exits: *Fac x3) -7/Factory (discovered 6 exits: *Fac x4 / [*Sto] / [*Low]) -7/Lower Caves -7/Data Miner -6/Proximity Caves -6/Factory (discovered 4 exits: *Fac x4) -5/Factory (discovered 5 exits: *Fac x4 / [*Upp]) -4/Factory (discovered 6 exits: *Res x4 / [*Upp] / [*Ext]) -3/Research (discovered 3 exits: *Res x3) -2/Research (discovered 3 exits: *Acc x3) -1/Access To Epsilon Eridani History --------- Turn | Location | Event 23 | -11/Scrapyard | Discovered new exit (range 15) 67 | -11/Scrapyard | Entered Materials 211 | -10/Materials | Discovered new exit (range 5) 309 | -10/Materials | Build established: Mutant 436 | -10/Materials | Discovered new exit (range 13) 782 | -10/Materials | Discovered new exit (range 10) 948 | -10/Materials | Entered Mines 1100 | -10/Mines | Discovered new exit (range 7) 1111 | -10/Mines | Entered Materials 1111 | -9/Materials | Evolved 2 slots: Propulsion x1, Utility x1 1769 | -9/Materials | Discovered new exit (range 15) 1974 | -9/Materials | Lost 8 parts (1p4n2u1w) 2553 | -9/Materials | Discovered new exit (range 7) 2572 | -9/Materials | Entered Mines 2751 | -9/Mines | Discovered new exit (range 8) 2757 | -9/Mines | Learned location of Storage (-7) 2894 | -9/Mines | Learned Materials machine intel 2992 | -9/Mines | Learned location of 1 exit from Proximity Caves 3129 | -9/Mines | Discovered new exit (range 5) 3311 | -9/Mines | Deemed a non-threat by the Exiles lab entrance 3311 | -9/Mines | Discovered new exit (range 5) 3318 | -9/Mines | Entered Exiles 3357 | -9/Exiles | Met 8R-AWN 3382 | -9/Exiles | Met EX-HEX 3434 | -9/Exiles | Met EX-BIN 3466 | -9/Exiles | Aligned with FarCom system 3467 | -9/Exiles | Given EX-Vault access code 3504 | -9/Exiles | Opened EX-Vault 3513 | -9/Exiles | Found 0b10 Alert Chip 3544 | -9/Exiles | Warned to stay clear of 0b10 Research branches 3594 | -9/Exiles | Met EX-DEC 3646 | -9/Exiles | Visited The Gauntlet 3921 | -9/Exiles | Discovered new exit (range 14) 4223 | -9/Exiles | Left Exiles lab with 0b10 Alert Chip 4223 | -9/Exiles | Entered Mines 4652 | -8/Mines | Discovered new exit (range 12) 4669 | -8/Mines | Entered Materials 4669 | -8/Materials | Evolved 2 slots: Utility x2 4670 | -8/Materials | Loaded intel: 49 machine locations 6851 | -8/Materials | Repaired Med. Armor Plating 6890 | -8/Materials | Repaired Hvy. Armor Plating 6936 | -8/Materials | Repaired Imp. Titanium Leg 7275 | -8/Materials | Discovered new exit (range 11) 8129 | -8/Materials | Repaired Minigun 8191 | -8/Materials | Identified exit to Factory 8259 | -8/Materials | Entered Factory 8259 | -7/Factory | Evolved 2 slots: Propulsion x1, Utility x1 8608 | -7/Factory | Discovered new exit (range 13) 8610 | -7/Factory | Discovered new exit (range 10) 8614 | -7/Factory | Identified exit to Factory 8625 | -7/Factory | Discovered new exit (range 10) 8699 | -7/Factory | Build established: Hacker-Scout 8783 | -7/Factory | Entered Lower Caves 8783 | -7/Lower Caves | Accompanied by 1 ally 8797 | -7/Lower Caves | Spotted B-75 Beast 8807 | -7/Lower Caves | Attracted the attention of an 0b10 checkpoint 8855 | -7/Lower Caves | A Derelict revealed a hidden shortcut to meet someone special 8858 | -7/Lower Caves | Entered Data Miner 8858 | -7/Data Miner | Discovered new exit (range 6) 8864 | -7/Data Miner | Met Data Miner 8870 | -7/Data Miner | Learned location of Section 7 (-2) 8870 | -7/Data Miner | Acquired the access code to Warlord's prototype stash 8876 | -7/Data Miner | Received God Mode back door access code from Data Miner 8902 | -7/Data Miner | Entered Proximity Caves 8929 | -6/Proximity Caves | Attracted the attention of an 0b10 checkpoint 8940 | -6/Proximity Caves | Attracted the attention of an 0b10 outpost 8957 | -6/Proximity Caves | Learned Factory stockpile data 8969 | -6/Proximity Caves | Learned location of 1 exit from Proximity Caves 8990 | -6/Proximity Caves | Entered Factory 8990 | -6/Factory | Evolved 2 slots: Propulsion x1, Utility x1 9039 | -6/Factory | Identified exit to Factory 9474 | -6/Factory | Fabricated Biomechanical Wings? 10041 | -6/Factory | Repaired Imp. Light Armor Plating 10045 | -6/Factory | Entered another Factory area 10045 | -5/Factory | Accompanied by 1 ally 10045 | -5/Factory | Evolved 2 slots: Utility x2 10358 | -5/Factory | Build established: Hacker-Ninja 10400 | -5/Factory | Identified exit to Factory 10521 | -5/Factory | Discovered new exit (range 14) 10848 | -5/Factory | Repaired Cld. Cesium-ion Thruster? 10866 | -5/Factory | Fabricated Cld. Cesium-ion Thruster? 10903 | -5/Factory | Entered another Factory area 10903 | -4/Factory | Evolved 2 slots: Power x1, Propulsion x1 10925 | -4/Factory | Discovered new exit (range 9) 10952 | -4/Factory | Identified exit to Research 11047 | -4/Factory | Repaired Imp. Light Armor Plating 11182 | -4/Factory | Fabricated Structural Scanner? 11247 | -4/Factory | Discovered new exit (range 10) 11345 | -4/Factory | Entered Research 11345 | -3/Research | Evolved 2 slots: Utility x2 11415 | -3/Research | Found Prototype Device 11415 | -3/Research | Identified Exp. Shield Generator 11453 | -3/Research | Fabricated Adv. Hacking Suite (x1) 11532 | -3/Research | Discovered new exit (range 11) 11575 | -3/Research | Identified exit to Research 11589 | -3/Research | Entered another Research area 11589 | -2/Research | Evolved 2 slots: Propulsion x1, Utility x1 11868 | -2/Research | Identified exit to Access 12013 | -2/Research | Entered Access 12013 | -1/Access | Evolved 2 slots: Utility x2 12041 | -1/Access | Lost 13 parts (2p6n4u1w) 12321 | -1/Access | Build established: Hacker-Scout 12344 | -1/Access | Energy Cycler disabled 12381 | -1/Access | Discovered new exit (range 7) 12385 | *** | Escaped! Last Messages --------------- 12352_ Slug penetrates Wall. 12352_ Slug penetrates Repair Station. 12352_ Slug penetrates K-01 Serf. 12352_ K-01 Serf destroyed. 12353_ K-01 Serf collects debris. 12353_ Slug penetrates Wall. 12354_ Repair Station disabled. 12355_ Slug penetrates Wave Collapse Detector. 12355_ Wave Collapse Detector explodes. 12356_ Particle Reactor destroyed. 12356_ K-01 Serf collects debris. 12357_ Slug penetrates Wall. 12357_ Adv. Hacking Suite destroyed. 12358_ Slug penetrates Wall. 12358_ Imp. Gyrokinetic Inverter destroyed. 12361_ Slug penetrates A-15 Conveyor. 12361_ Slug penetrates Wall. 12381_ The Access Shell folds into the floor. 12381_ EXIT=FOUND [Achievement: Epsilon Run] Map ----- +----------------------------------------------------+ | #?????????????? #????????????????????????????? | | #?????????????? #????????????????????????????? | | #??????????????? ! #????????????????????????????? | | ########?????""? #????????????????????????????? | | #?????""?? #????????????????????????????? | | #???"""""" #????????????????????????????? | | ##### #???""""""? #????????????????????????????? | | ????# /?????""??? #????????????????????????????? | | ????# #?????""???? #????????????????????????????? | | ????# #???????????##????????????????????????????? | | ????# ############################### #????????? | | ????# p ??????? | | ????# p ???????? | | ????################# ""#?????????????????? | | ????????????????????# ""#?????????????????? | | ????????????????????# ""#?????????????????? | | ????????????????????# T#?????????????????? | | ????????????????????# ""#?????????????????? | | ????????????????????# ""#?????????????????? | | ???????????????????## ""##????????????????? | | ???????????????????# #????????????????? | | ???????????????????## ##????????????????? | | ????????????????????# #????????????????"" | | ????????????????????# #????????????????T" | | ????????????????????# #?????????????????? | | ????????????????????# @" #?????????????????? | | ????????????????????# "" #?????????????????? | | ????????????????????# #?????????????????? | | ????????????????????# #?????????????????? | | ????????????????????# #?????????????????? | | ????????????????????#""""""""""#?????????????????? | | ?????????????????????????????????????????????????? | | ?????????????????????????????????????????????????? | | ?????????????????????????????????????????????????? | | ?????????????????????????????????????????????????? | | ??????????????????????BB????BB???????????????????? | | ??????????????????????BB????BB???????????????????? | | ?????????????????????????????????????????????????? | | ?????????????????????????????????????????????????? | | ?????????????????????????????????????????????????? | | ?????????????????????????????????????????????????? | | ?????????????????????????????????????????????????? | | ?????????????????????????????????????????????????? | | ?????????????????????????????????????????????????? | | ?????????????????????????????????????????????????? | | ?????????????????????????????????????????????????? | | ?????????????????????????????????????????????????? | | ?????????????????????????????????????????????????? | | ?????????????????????????????????????????????????? | | ?????????????????????????????????????????????????? | +----------------------------------------------------+ Best States ------------- Heat Dissipation 52 Energy Generation 61 Energy Capacity 375 Matter Stores 300 Matter Capacity 300 Sight Range 22 Terrain Scan Density 10 ECM Strength 2 Jamming Range 16 Cloak Strength 2 Power Amplification 40 Armor Coverage 825 Evasion (%) 65 Targeting Accuracy 14 Recoil Reduction 4 Offensive Hacking 24 Defensive Hacking 34 Item Schematics ----------------- Hacking Suite | -7/Factory | Hacked Mic. Nuclear Core | -7/Factory | Hacked Combat Drone Bay | -7/Data Miner | Free Lgt. Regenerative Plating | -7/Data Miner | Free Biomechanical Wings | -7/Data Miner | Free Gravity Neutralizer | -7/Data Miner | Free Cld. Plasma Cannon | -7/Data Miner | Free Gyrokinetic Inverter | -7/Data Miner | Free Adv. Shield Generator | -7/Data Miner | Free Imp. Plasma Cutter | -7/Data Miner | Free Lrn. Proton Cannon | -7/Data Miner | Free Enh. Gauss Cannon | -7/Data Miner | Free Lrn. Sensor Array | -7/Data Miner | Free Antimatter Reactor | -7/Data Miner | Free Cld. Cesium-ion Thruster | -5/Factory | Scanalyzed Structural Scanner | -4/Factory | Hacked Adv. Hacking Suite | -4/Factory | Hacked Robot Schematics ------------------ E-15 Imp | -7/Data Miner | Free Y-54 Guardian | -7/Data Miner | Free G-50 Soldier | -7/Data Miner | Free H-66 Slayer | -7/Data Miner | Free B-48 Gladiator | -7/Data Miner | Free A-15 Conveyor | -7/Data Miner | Free Fabricated ------------ Biomechanical Wings | x1 | -6/Factory Cld. Cesium-ion Thruster | x1 | -5/Factory Structural Scanner | x2 | -4/Factory Adv. Hacking Suite | x1 | -3/Research Alien Tech Used ----------------- None Achievements -------------- Epsilon Run Prolific Hacker Watch This! Challenges ------------ None Game ------ Seed MagneticTerrainMaul Manual? 0 Play Time 03:11:03 Cumulative 27.7 hours Start 2024.08.24 @ 03:53:23 End 2024.08.27 @ 05:26:37 Sessions 5 Manual Loads 0 Difficulty Rogue Special Mode None Game No. 34 Rogue 34 Adventurer 0 Explorer 0 Win Type 0 Total 1 Types 1/0/0/0/0/0/0/0/0 Lore% 15 Gallery% 29 Achievement% 30 Wizard Run 0 Options --------- Layout 0 ASCII 0 Keyboard 0 Movement Mouse Keybinds 0 Fullscreen 2 Font 24/Terminus Map View 76x50 Zoom Use 0% Tactical HUD 1 Map Filters NONE Filters NONE Steam 1 RUN: 9d85f655-875c-4ad7-a20f-f56d0aa4e669